fUST/lending_fUST_20251130
["ID","MTS","AMOUNT","RATE_DAILY","PERIOD"]
[395127334,1764459050862,-151.0,0.00013972,2]
[395127335,1764459050873,-500.0,0.00013972,2]
[395127336,1764459050883,-500.0,0.00013972,2]
[395127337,1764459050893,-801.13,0.00013972,2]
[395127338,1764459050903,-500.0,0.00013972,2]
[395127339,1764459050914,-500.0,0.00013972,2]
[395127340,1764459050923,-151.0,0.00013972,2]
[395127341,1764459050932,-151.0,0.00013972,2]
[395127342,1764459050941,-223.485183,0.00013972,2]
[395127343,1764459050954,-320.8,0.00013972,2]
[395127344,1764459050965,-500.0,0.00013972,2]
[395127345,1764459050974,-549.48357672,0.00013972,2]
[395127346,1764459050983,-500.0,0.00013972,2]
[395127347,1764459050993,-151.0,0.00013972,2]
[395127348,1764459051002,-500.0,0.00013972,2]
[395127349,1764459051011,-500.0,0.00013972,2]
[395127350,1764459051020,-151.0,0.00013972,2]
[395127351,1764459051029,-500.0,0.00013972,2]
[395127352,1764459051039,-238.6,0.00013972,2]
[395127353,1764459051048,-151.0,0.00013972,2]
[395127354,1764459051057,-500.0,0.00013972,2]
[395127355,1764459051067,-500.0,0.00013972,2]
[395127356,1764459051076,-550.43236613,0.00013972,2]
[395127357,1764459051085,-500.0,0.00013972,2]
[395127358,1764459051094,-648.14,0.00013972,2]
[395127359,1764459051103,-507.74713149,0.00013972,2]
[395127360,1764459051113,-500.0,0.00013972,2]
[395127361,1764459051122,-500.0,0.00013972,2]
[395127362,1764459051131,-500.0,0.00013972,2]
[395127363,1764459051140,-500.0,0.00013972,2]
[395127364,1764459051149,-502.55095966,0.00013972,2]
[395127365,1764459051161,-151.0,0.00013972,2]
[395127366,1764459051170,-500.0,0.00013972,2]
[395127367,1764459051180,-151.0,0.00013972,2]
[395127368,1764459051189,-500.0,0.00013972,2]
[395127369,1764459051199,-502.38355188,0.00013972,2]
[395127370,1764459051208,-502.53004341,0.00013972,2]
[395127371,1764459051218,-1119.29,0.00013972,2]
[395127372,1764459051227,-500.0,0.00013972,2]
[395127373,1764459051236,-630.89294255,0.00013972,2]
[395127374,1764459051246,-512.34,0.00013972,2]
[395127375,1764459051255,-561.71635776,0.00013972,2]
[395127376,1764459051264,-502.75620734,0.00013972,2]
[395127377,1764459051273,-502.16381654,0.00013972,2]
[395127378,1764459051284,-500.85937705,0.00013972,2]
[395127379,1764459051294,-500.0,0.00013972,2]
[395127380,1764459051304,-501.99290016,0.00013972,2]
[395127381,1764459051313,-500.33855063,0.00013972,2]
[395127382,1764459051323,-500.90197671,0.00013972,2]
[395127383,1764459051332,-500.0,0.00013972,2]
[395127384,1764459051342,-500.0,0.00013972,2]
[395127385,1764459051351,-501.05906801,0.00013972,2]
[395127386,1764459051360,-501.93606499,0.00013972,2]
[395127387,1764459051369,-805.69,0.00013972,2]
[395127388,1764459051379,-500.0,0.00013972,2]
[395127389,1764459051388,-872.259716,0.00013972,2]
[395127390,1764459051398,-500.7091989,0.00013972,2]
[395127391,1764459051408,-151.0,0.00013972,2]
[395127392,1764459051418,-500.0,0.00013972,2]
[395127393,1764459051428,-506.10108429,0.00013972,2]
[395127394,1764459051437,-500.0,0.00013972,2]
[395127395,1764459051446,-500.0,0.00013972,2]
[395127396,1764459051455,-501.26352705,0.00013972,2]
[395127397,1764459051464,-1141.713357,0.00013972,2]
[395127398,1764459051473,-300.8018068,0.00013972,2]
[395127399,1764459051482,-501.59503825,0.00013972,2]
[395127400,1764459051491,-500.0,0.00013972,2]
[395127401,1764459051503,-536.27715754,0.00013972,2]
[395127402,1764459051512,-500.0,0.00013972,2]
[395127403,1764459051522,-500.0,0.00013972,2]
[395127404,1764459051531,-515.2542375,0.00013972,2]
[395127405,1764459051546,-501.59912961,0.00013972,2]
[395127406,1764459051555,-500.0,0.00013972,2]
[395127407,1764459051565,-1141.713357,0.00013972,2]
[395127408,1764459051574,-1141.713357,0.00013972,2]
[395127409,1764459051583,-537.09,0.00013972,2]
[395127410,1764459051592,-1141.713357,0.00013972,2]
[395127411,1764459051602,-500.79787184,0.00013972,2]
[395127412,1764459051611,-500.0,0.00013972,2]
[395127413,1764459051621,-500.46677437,0.00013972,2]
[395127414,1764459051630,-500.0,0.00013972,2]
[395127415,1764459051639,-500.0,0.00013972,2]
[395127416,1764459051649,-500.0,0.00013972,2]
[395127417,1764459051658,-500.0,0.00013972,2]
[395127418,1764459051668,-500.0,0.00013972,2]
[395127419,1764459051678,-500.29350393,0.00013972,2]
[395127420,1764459051687,-500.0,0.00013972,2]
[395127421,1764459051812,-500.0,0.00013972,2]
[395127422,1764459051821,-160.507096,0.00013972,2]
[395127423,1764459051830,-500.0,0.00013972,2]
[395127424,1764459051839,-500.0,0.00013972,2]
[395127425,1764459051848,-500.0,0.00013972,2]
[395127426,1764459051857,-530.25494608,0.00013972,2]
[395127427,1764459051867,-500.0,0.00013972,2]
[395127428,1764459051876,-202.126953,0.00013972,2]
[395127429,1764459051885,-501.1872994,0.00013972,2]
[395127430,1764459051894,-500.0,0.00013972,2]
[395127431,1764459051903,-202.126953,0.00013972,2]
[395127432,1764459051912,-503.61582631,0.00013972,2]
[395127433,1764459051921,-500.0,0.00013972,2]
[395127434,1764459051930,-202.126953,0.00013972,2]
[395127435,1764459051939,-151.0,0.00013972,2]
[395127436,1764459051953,-202.126953,0.00013972,2]
[395127437,1764459051962,-151.0,0.00013972,2]
[395127438,1764459051971,-500.0,0.00013972,2]
[395127439,1764459051980,-673.85,0.00013972,2]
[395127440,1764459051991,-500.0,0.00013972,2]
[395127441,1764459052000,-500.0,0.00013972,2]
[395127442,1764459052009,-501.09627357,0.00013972,2]
[395127443,1764459052018,-500.0,0.00013972,2]
[395127444,1764459052029,-801.66,0.00013972,2]
[395127445,1764459052038,-503.45760013,0.00013972,2]
[395127446,1764459052047,-500.0,0.00013972,2]
[395127447,1764459052056,-500.0,0.00013972,2]
[395127448,1764459052065,-500.0,0.00013972,2]
[395127449,1764459052074,-500.0,0.00013972,2]
[395127450,1764459052083,-500.0,0.00013972,2]
[395127451,1764459052092,-502.37906857,0.00013972,2]
[395127452,1764459052101,-500.66477855,0.00013972,2]
[395127453,1764459052110,-500.0,0.00013972,2]
[395127454,1764459052119,-500.0,0.00013972,2]
[395127455,1764459052128,-500.0,0.00013972,2]
[395127456,1764459052137,-500.0,0.00013972,2]
[395127457,1764459052146,-500.0,0.00013972,2]
[395127458,1764459052155,-612.37724435,0.00013972,2]
[395127459,1764459052164,-500.0,0.00013972,2]
[395127460,1764459052173,-500.0,0.00013972,2]
[395127461,1764459052182,-478.02396197,0.00013972,2]
[395127462,1764459052191,-500.0,0.00013972,2]
[395127463,1764459052200,-500.0,0.00013972,2]
[395127464,1764459052209,-500.0,0.00013972,2]
[395127465,1764459052219,-501.80757199,0.00013972,2]
[395127466,1764459052228,-1606.78,0.00013972,2]
[395127467,1764459052238,-500.0,0.00013972,2]
[395127468,1764459052247,-194.200538,0.00013972,2]
[395127469,1764459052256,-501.34733777,0.00013972,2]
[395127470,1764459052265,-194.200538,0.00013972,2]
[395127471,1764459052274,-501.56668389,0.00013972,2]
[395127472,1764459052283,-500.0,0.00013972,2]
[395127473,1764459052292,-194.200538,0.00013972,2]
[395127474,1764459052302,-194.200538,0.00013972,2]
[395127475,1764459052311,-500.0,0.00013972,2]
[395127476,1764459052320,-962.11,0.00013972,2]
[395127477,1764459052330,-209.34,0.00013972,2]
[395127478,1764459052339,-500.21495844,0.00013972,2]
[395127479,1764459052349,-500.53966593,0.00013972,2]
[395127480,1764459052358,-500.0,0.00013972,2]
[395127481,1764459052367,-500.0,0.00013972,2]
[395127482,1764459052376,-151.0,0.00013972,2]
[395127483,1764459052385,-501.51624288,0.00013972,2]
[395127484,1764459052394,-500.0,0.00013972,2]
[395127485,1764459052403,-151.0,0.00013972,2]
[395127486,1764459052413,-504.36598102,0.00013972,2]
[395127487,1764459052422,-500.0,0.00013972,2]
[395127488,1764459052431,-500.0,0.00013972,2]
[395127489,1764459052440,-500.0,0.00013972,2]
[395127490,1764459052449,-611.66843506,0.00013972,2]
[395127491,1764459052458,-500.0,0.00013972,2]
[395127492,1764459052467,-151.0,0.00013972,2]
[395127493,1764459052476,-151.0,0.00013972,2]
[395127494,1764459052485,-747.88,0.00013972,2]
[395127495,1764459052494,-151.0,0.00013972,2]
[395127496,1764459052503,-500.0,0.00013972,2]
[395127497,1764459052513,-502.99316091,0.00013972,2]
[395127498,1764459052523,-151.0,0.00013972,2]
[395127499,1764459052532,-182.064614,0.00013972,2]
[395127500,1764459052547,-501.81468023,0.00013972,2]
[395127501,1764459052557,-500.0,0.00013972,2]
[395127502,1764459052566,-500.44178503,0.00013972,2]
[395127503,1764459052575,-500.0,0.00013972,2]
[395127504,1764459052584,-578.18,0.00013972,2]
[395127505,1764459052593,-500.91639323,0.00013972,2]
[395127506,1764459052602,-500.0,0.00013972,2]
[395127507,1764459052611,-500.0,0.00013972,2]
[395127508,1764459052620,-500.0,0.00013972,2]
[395127509,1764459052629,-26.60645395,0.00013972,2]
[395127510,1764459053482,-435.13124528,0.00010849,2]
[395127511,1764459053901,-7.97018362,0.00010849,2]
[395127512,1764459053911,-500.0,0.00013273,2]
[395127513,1764459053920,-500.79867649,0.00013273,2]
[395127514,1764459053930,-500.0,0.00013273,2]
[395127515,1764459053940,-500.0,0.00013273,2]
[395127516,1764459053952,-536.22,0.00013698,2]
[395127517,1764459053963,-502.15264878,0.00013698,2]
[395127518,1764459053972,-500.0,0.00013698,2]
[395127519,1764459053982,-500.0,0.00013698,2]
[395127520,1764459053993,-566.968815,0.00013698,2]
[395127521,1764459054003,-566.968815,0.00013698,2]
[395127522,1764459054012,-4338.21801105,0.00013699,2]
[395127523,1764459054022,-500.0,0.00013699,2]
[395127524,1764459054035,-1000.0,0.00013821,2]
[395127525,1764459054046,-475.55681534,0.00013972,2]
[395127526,1764459054055,-535.98,0.00013972,2]
[395127527,1764459054065,-502.06851587,0.00013972,2]
[395127528,1764459054075,-500.0,0.00013972,2]
[395127529,1764459054085,-536.64,0.00013972,2]
[395127530,1764459054094,-500.39715798,0.00013972,2]
[395127531,1764459054103,-501.58237493,0.00013972,2]
[395127532,1764459054113,-500.0,0.00013972,2]
[395127533,1764459054123,-500.55774818,0.00013972,2]
[395127534,1764459054132,-500.39336653,0.00013972,2]
[395127535,1764459054142,-452.64389362,0.00013972,2]
[395127536,1764459054152,-481.85195338,0.00013972,2]
[395127537,1764459054161,-501.13233212,0.00013972,2]
[395127538,1764459054171,-500.0,0.00013972,2]
[395127539,1764459054180,-500.51008915,0.00013972,2]
[395127540,1764459054189,-500.50942965,0.00013972,2]
[395127541,1764459054199,-501.87714847,0.00013972,2]
[395127542,1764459054208,-503.20863269,0.00013972,2]
[395127543,1764459054217,-500.0,0.00013972,2]
[395127544,1764459054226,-500.0,0.00013972,2]
[395127545,1764459054235,-151.0,0.00013972,2]
[395127546,1764459054245,-151.0,0.00013972,2]
[395127547,1764459054254,-604.2268954,0.00013972,2]
[395127548,1764459054264,-151.0,0.00013972,2]
[395127549,1764459054274,-549.0,0.00013972,2]
[395127550,1764459054283,-151.0,0.00013972,2]
[395127551,1764459054292,-501.2568379,0.00013972,2]
[395127552,1764459054301,-500.0,0.00013972,2]
[395127553,1764459054311,-206.15950319,0.00013972,2]
[395127554,1764459054322,-500.7015671,0.00013972,2]
[395127555,1764459054331,-500.36577535,0.00013972,2]
[395127556,1764459054341,-501.58091141,0.00013972,2]
[395127557,1764459054350,-552.06161248,0.00013972,2]
[395127558,1764459054360,-500.0,0.00013972,2]
[395127559,1764459054369,-500.46734292,0.00013972,2]
[395127560,1764459054378,-598.18,0.00013972,2]
[395127561,1764459054388,-151.0,0.00013972,2]
[395127562,1764459054397,-151.0,0.00013972,2]
[395127563,1764459054406,-500.0,0.00013972,2]
[395127564,1764459054415,-227.253124,0.00013972,2]
[395127565,1764459054425,-500.24271096,0.00013972,2]
[395127566,1764459054434,-500.61379829,0.00013972,2]
[395127567,1764459054444,-502.30417143,0.00013972,2]
[395127568,1764459054453,-500.8252643,0.00013972,2]
[395127569,1764459054464,-500.0,0.00013972,2]
[395127570,1764459054474,-607.19,0.00013972,2]
[395127571,1764459054484,-540.38118632,0.00013972,2]
[395127572,1764459054494,-500.0,0.00013972,2]
[395127573,1764459054505,-512.37000408,0.00013972,2]
[395127574,1764459054516,-502.41384885,0.00013972,2]
[395127575,1764459054528,-502.57297602,0.00013972,2]
[395127576,1764459054537,-502.56281704,0.00013972,2]
[395127577,1764459054547,-500.95739486,0.00013972,2]
[395127578,1764459054556,-500.0,0.00013972,2]
[395127579,1764459054565,-400.64304095,0.00013972,2]
[395127580,1764459054574,-181.61,0.00013972,2]
[395127581,1764459054584,-501.62765693,0.00013972,2]
[395127582,1764459054594,-500.48506948,0.00013972,2]
[395127583,1764459054604,-501.54120388,0.00013972,2]
[395127584,1764459054615,-518.89481487,0.00013972,2]
[395127585,1764459054627,-500.27982315,0.00013972,2]
[395127586,1764459054637,-500.0,0.00013972,2]
[395127587,1764459054646,-500.0,0.00013972,2]
[395127588,1764459054748,-502.7565918,0.00013972,2]
[395127589,1764459054760,-500.0,0.00013972,2]
[395127590,1764459054770,-550.94595094,0.00013972,2]
[395127591,1764459054780,-500.0,0.00013972,2]
[395127592,1764459054789,-500.0,0.00013972,2]
[395127593,1764459054798,-212.42899964,0.00013972,2]
[395127594,1764459054808,-502.09906974,0.00013972,2]
[395127595,1764459054818,-500.34703898,0.00013972,2]
[395127596,1764459054828,-500.97637849,0.00013972,2]
[395127597,1764459054837,-503.07495314,0.00013972,2]
[395127598,1764459054848,-500.40088725,0.00013972,2]
[395127599,1764459054857,-500.0,0.00013972,2]
[395127600,1764459054867,-502.17355204,0.00013972,2]
[395127601,1764459054878,-608.18,0.00013972,2]
[395127602,1764459054887,-181.459142,0.00013972,2]
[395127603,1764459054897,-500.0,0.00013972,2]
[395127604,1764459054906,-501.51166375,0.00013972,2]
[395127605,1764459054915,-202.284932,0.00013972,2]
[395127606,1764459054924,-500.3846058,0.00013972,2]
[395127607,1764459054933,-500.99719838,0.00013972,2]
[395127608,1764459054943,-504.43336939,0.00013972,2]
[395127609,1764459054957,-500.0,0.00013972,2]
[395127610,1764459054966,-502.33299843,0.00013972,2]
[395127611,1764459054976,-502.90723526,0.00013972,2]
[395127612,1764459054985,-502.19498075,0.00013972,2]
[395127613,1764459054994,-505.2297517,0.00013972,2]
[395127614,1764459055003,-485.33192662,0.00013972,2]
[395127615,1764459055012,-504.5394003,0.00013972,2]
[395127616,1764459055021,-501.26903696,0.00013972,2]
[395127617,1764459055031,-500.0,0.00013972,2]
[395127618,1764459055039,-500.0,0.00013972,2]
[395127619,1764459055049,-502.09586035,0.00013972,2]
[395127620,1764459055058,-501.14684307,0.00013972,2]
[395127621,1764459055067,-500.0,0.00013972,2]
[395127622,1764459055076,-500.63193428,0.00013972,2]
[395127623,1764459055086,-157.83788557,0.00013972,2]
[395127624,1764459055095,-502.21058223,0.00013972,2]
[395127625,1764459055104,-501.52130686,0.00013972,2]
[395127626,1764459055114,-502.28768086,0.00013972,2]
[395127627,1764459055123,-522.21151494,0.00013972,2]
[395127628,1764459055134,-502.13357733,0.00013972,2]
[395127629,1764459055150,-500.0,0.00013972,2]
[395127630,1764459055160,-503.58405293,0.00013972,2]
[395127631,1764459055170,-823.04,0.00013972,2]
[395127632,1764459055179,-503.99562241,0.00013972,2]
[395127633,1764459055190,-566.14191009,0.00013972,2]
[395127634,1764459055201,-501.8957896,0.00013972,2]
[395127635,1764459055211,-500.0,0.00013972,2]
[395127636,1764459055221,-500.0,0.00013972,2]
[395127637,1764459055232,-501.66929985,0.00013972,2]
[395127638,1764459055242,-501.09297352,0.00013972,2]
[395127639,1764459055251,-838.48,0.00013972,2]
[395127640,1764459055260,-500.0,0.00013972,2]
[395127641,1764459055270,-501.64281504,0.00013972,2]
[395127642,1764459055279,-500.53377519,0.00013972,2]
[395127643,1764459055289,-500.0,0.00013972,2]
[395127644,1764459055299,-500.0,0.00013972,2]
[395127645,1764459055308,-500.0,0.00013972,2]
[395127646,1764459055317,-579.5059059,0.00013972,2]
[395127647,1764459055327,-500.0,0.00013972,2]
[395127648,1764459055337,-500.0,0.00013972,2]
[395127649,1764459055347,-500.0,0.00013972,2]
[395127650,1764459055356,-792.36,0.00013972,2]
[395127651,1764459055366,-629.35120551,0.00013972,2]
[395127652,1764459055376,-500.0,0.00013972,2]
[395127653,1764459055385,-500.0,0.00013972,2]
[395127654,1764459055394,-500.65009626,0.00013972,2]
[395127655,1764459055404,-500.0,0.00013972,2]
[395127656,1764459055414,-504.05287071,0.00013972,2]
[395127657,1764459055423,-500.61676538,0.00013972,2]
[395127658,1764459055434,-500.0,0.00013972,2]
[395127659,1764459055449,-500.0,0.00013972,2]
[395127660,1764459055468,-501.54521065,0.00013972,2]
[395127661,1764459055485,-500.75744484,0.00013972,2]
[395127662,1764459055504,-500.0,0.00013972,2]
[395127663,1764459055523,-500.71774614,0.00013972,2]
[395127664,1764459055540,-1001.33827181,0.00013972,2]
[395127665,1764459055558,-501.05291345,0.00013972,2]
[395127666,1764459055573,-501.55509999,0.00013972,2]
[395127667,1764459055588,-500.0,0.00013972,2]
[395127668,1764459055605,-501.56947136,0.00013972,2]
[395127669,1764459055628,-500.0,0.00013972,2]
[395127670,1764459055641,-547.4464969,0.00013972,2]
[395127671,1764459055658,-501.28340699,0.00013972,2]
[395127672,1764459055674,-501.83874404,0.00013972,2]
[395127673,1764459055690,-167.70108,0.00013972,2]
[395127674,1764459055706,-500.94016058,0.00013972,2]
[395127675,1764459055720,-494.26958649,0.00013972,2]
[395127676,1764459055737,-500.68144679,0.00013972,2]
[395127677,1764459055754,-500.24774412,0.00013972,2]
[395127678,1764459055768,-501.32416654,0.00013972,2]
[395127679,1764459055784,-232.98,0.00013972,2]
[395127680,1764459055798,-500.0,0.00013972,2]
[395127681,1764459055812,-500.1777737,0.00013972,2]
[395127682,1764459055827,-500.0,0.00013972,2]
[395127683,1764459055841,-502.06556132,0.00013972,2]
[395127684,1764459055855,-500.95095259,0.00013972,2]
[395127685,1764459055870,-501.78617457,0.00013972,2]
[395127686,1764459055886,-500.0,0.00013972,2]
[395127687,1764459055901,-500.0,0.00013972,2]
[395127688,1764459055917,-501.4789639,0.00013972,2]
[395127689,1764459055934,-500.42363224,0.00013972,2]
[395127690,1764459055951,-242.306676,0.00013972,2]
[395127691,1764459055966,-500.0,0.00013972,2]
[395127692,1764459055981,-500.0,0.00013972,2]
[395127693,1764459055999,-500.0,0.00013972,2]
[395127694,1764459056014,-242.306676,0.00013972,2]
[395127695,1764459056033,-500.0,0.00013972,2]
[395127696,1764459056047,-500.0,0.00013972,2]
[395127697,1764459056063,-501.64843152,0.00013972,2]
[395127698,1764459056078,-242.306676,0.00013972,2]
[395127699,1764459056093,-501.20040235,0.00013972,2]
[395127700,1764459056109,-242.306671,0.00013972,2]
[395127701,1764459056124,-982.15155732,0.00013972,2]
[395127702,1764459056235,-2e-08,0.00013972,2]
[395127703,1764459057851,1025.87545973,0.0001033,2]
[395127704,1764459057903,-282.66381212,0.00010434,2]
[395127705,1764459059406,500.0,0.00010334,2]
[395127706,1764459059437,500.0,0.00010334,2]
[395127707,1764459059468,245.3602635,0.00010334,2]
[395127708,1764459059516,-500.0,0.00010434,2]
[395127709,1764459059545,-500.0,0.00010434,2]
[395127710,1764459059575,-500.0,0.00010434,2]
[395127711,1764459059603,-500.0,0.00010434,2]
[395127712,1764459059630,-333.63479436,0.00010434,2]
[395127713,1764459059660,-500.0,0.00010434,2]
[395127714,1764459059689,-500.0,0.00010434,2]
[395127715,1764459059719,-500.0,0.00010434,2]
[395127716,1764459059749,-500.0,0.00010434,2]
[395127717,1764459059778,-500.0,0.00010434,2]
[395127718,1764459059834,-500.0,0.00010434,2]
[395127719,1764459059867,-500.0,0.00010434,2]
[395127720,1764459059898,-500.0,0.00010434,2]
[395127721,1764459059930,-500.0,0.00010434,2]
[395127722,1764459059964,-500.0,0.00010434,2]
[395127723,1764459059995,-202.61922771,0.00010434,2]
[395127724,1764459060026,-381.96660106,0.00010434,2]
[395127725,1764459060057,-500.0,0.00010434,2]
[395127726,1764459060090,-500.0,0.00010434,2]
[395127727,1764459060120,-227.99418344,0.00010434,2]
[395127728,1764459060151,150.0,0.00010227,2]
[395127729,1764459062605,300.0,0.00010433,2]
[395127730,1764459063916,246.66947791,0.00010334,2]
[395127731,1764459073620,443.1014289,0.00010634,2]
[395127736,1764459081341,262.48128857,0.00010634,2]
[395127737,1764459088921,500.0,0.00010334,2]
[395127738,1764459088963,500.0,0.00010334,2]
[395127739,1764459088996,500.0,0.00010334,2]
[395127740,1764459089029,500.0,0.00010334,2]
[395127741,1764459089062,500.0,0.00010334,2]
[395127742,1764459089289,500.0,0.00010334,2]
[395127743,1764459089363,500.0,0.00010334,2]
[395127744,1764459089406,500.0,0.00010334,2]
[395127745,1764459089442,500.0,0.00010334,2]
[395127746,1764459089506,500.0,0.00010334,2]
[395127747,1764459089539,161.13536901,0.00010334,2]
[395127748,1764459089572,500.0,0.00010334,2]
[395127749,1764459089603,425.22279758,0.00010334,2]
[395127750,1764459089647,500.0,0.00010334,2]
[395127751,1764459089679,500.0,0.00010334,2]
[395127752,1764459089735,500.0,0.00010334,2]
[395127753,1764459089767,500.0,0.00010334,2]
[395127754,1764459089799,500.0,0.00010334,2]
[395127755,1764459089837,500.0,0.00010334,2]
[395127756,1764459089869,208.06911594,0.00010334,2]
[395127757,1764459089895,291.93088406,0.00010334,2]
[395127758,1764459089936,500.0,0.00010334,2]
[395127759,1764459089976,500.0,0.00010334,2]
[395127760,1764459090011,500.0,0.00010334,2]
[395127761,1764459090048,500.0,0.00010334,2]
[395127762,1764459090079,500.0,0.00010334,2]
[395127763,1764459090121,500.0,0.00010334,2]
[395127764,1764459090154,500.0,0.00010334,2]
[395127765,1764459090196,500.0,0.00010334,2]
[395127766,1764459090245,500.0,0.00010334,2]
[395127767,1764459090283,500.0,0.00010334,2]
[395127768,1764459090316,517.01307135,0.00010334,2]
[395127769,1764459090348,500.0,0.00010334,2]
[395127770,1764459090383,500.0,0.00010334,2]
[395127771,1764459090419,500.0,0.00010334,2]
[395127772,1764459090450,500.0,0.00010334,2]
[395127773,1764459090491,500.0,0.00010334,2]
[395127774,1764459090529,500.0,0.00010334,2]
[395127775,1764459090562,500.0,0.00010334,2]
[395127776,1764459090601,500.0,0.00010334,2]
[395127777,1764459090638,191.06604459,0.00010334,2]
[395127778,1764459090662,308.93395541,0.00010334,2]
[395127779,1764459090722,321.60904292,0.00010334,2]
[395127780,1764459090757,500.0,0.00010334,2]
[395127781,1764459096250,443.1014289,0.00010634,2]
[395127782,1764459098619,252.87548875,8.907e-05,2]
[395127783,1764459101366,500.0,0.00010334,2]
[395127784,1764459101396,472.57073273,0.00010334,2]
[395127785,1764459101439,243.21164761,0.00010334,2]
[395127786,1764459101478,161.13536901,0.00010334,2]
[395127792,1764459103360,6796.57233467,0.00010335,2]
[395127793,1764459103390,10000.01,0.00010335,2]
[395127794,1764459103426,10000.01,0.00010335,2]
[395127800,1764459119617,314.34129841,8.907e-05,2]
[395127808,1764459140230,-179.28121561,0.00010231,2]
[395127809,1764459144740,-120.71878439,0.00010231,2]
[395127810,1764459144763,-217.43338785,0.00010232,2]
[395127811,1764459146410,-352.39028387,0.00010232,2]
[395127812,1764459146790,3223.0617107,0.0001013,2]
[395127813,1764459149320,-278.37449568,0.00010232,2]
[395127814,1764459152156,-474.5168464,0.00010232,2]
[395127815,1764459153883,-320.8709264,0.00010232,2]
[395127817,1764459157750,-500.0,0.00010232,2]
[395127819,1764459160575,-1000.0,0.00010232,2]
[395127820,1764459164079,-289.0,0.00010232,2]
[395127823,1764459166802,-302.06583249,0.00010232,2]
[395127825,1764459169010,-209.28303073,0.00010232,2]
[395127826,1764459171133,-302.0,0.00010232,2]
[395127827,1764459172648,-263.0,0.00010231,2]
[395127828,1764459172676,-39.0,0.00010232,2]
[395127829,1764459174794,-500.0,0.00010232,2]
[395127830,1764459176942,-1063.39028387,0.00010232,2]
[395127831,1764459178551,-500.0,0.00010232,2]
[395127832,1764459180102,-909.28303073,0.00010232,2]
[395127833,1764459183928,-300.0,0.00010231,2]
[395127834,1764459183950,-107.21719824,0.00010232,2]
[395127835,1764459186892,-304.34247359,0.00010232,2]
[395127836,1764459188743,-195.41222399,0.00010232,2]
[395127837,1764459190335,-500.0,0.00010232,2]
[395127838,1764459191967,-302.0,0.00010232,2]
[395127839,1764459193632,-302.0,0.00010232,2]
[395127840,1764459195951,-302.0,0.00010232,2]
[395127841,1764459198410,-650.78971398,0.00010232,2]
[395127845,1764459202289,-500.00000002,0.00010232,2]
[395127846,1764459206186,-219.13413592,0.00010232,2]
[395127847,1764459208602,-756.32316061,0.00010232,2]
[395127848,1764459210849,-320.71878437,0.00010232,2]
[395127849,1764459212915,-302.0,0.00010232,2]
[395127850,1764459217056,-500.0,0.00010232,2]
[395127851,1764459218883,-217.33618788,0.00010232,2]
[395127852,1764459222532,-282.66381212,0.00010232,2]
[395127853,1764459226065,-500.0,0.00010232,2]
[395127854,1764459228462,-500.0,0.00010232,2]
[395127856,1764459239288,3518.65323781,0.0001013,2]
[395127857,1764459261231,3518.65323781,0.0001013,2]
[395127858,1764459283965,2962.70352438,0.0001013,2]
[395127859,1764459283990,555.94971343,0.0001013,2]
[395127861,1764459305936,3518.65323781,0.0001013,2]
[395127864,1764459314404,3518.65323781,0.0001013,2]
[395127867,1764459325175,-410.79723505,0.00010282,2]
[395127868,1764459329539,2400.0,0.00010228,2]